Cogmind - Beta 14 @@@ ROGUE MODE // 2024.10.08 @ 22:34:12 Player: catpottery Result: Destroyed by G-47 Trooper with Particle Gun Performance ------------- Evolutions (0) 0 Regions Visited (1) 200 Robots Destroyed (21) 105 Value Destroyed (171) 171 Prototype IDs (0) 0 Alien Tech Used (0) 0 Bonus (0) 0 TOTAL SCORE: 476 Bonus ------- None Cogmind --------- Core Integrity 0/250 Matter 260/300 Energy 69/100 System Corruption 0% Temperature Cool (9) Movement Core (100) Ox1 Location -10/Materials Parts ------- > --- POWER (1) -------- (None) > --- PROPULSION (2) --- (None) > --- UTILITY (2) ------ Small Storage Unit Seismic Detector > --- WEAPON (2) ------- (None) > --- INVENTORY (8) ---- Transport Network Coupler Assault Rifle Assault Rifle Peak State ------------ > --- POWER ------------ Ion Engine > --- PROPULSION ------- Compact Wheel Compact Wheel > --- UTILITY ---------- Small Storage Unit Improved Terrain Scanner > --- WEAPON ----------- Assault Rifle Assault Rifle > --- INVENTORY -------- Light Ion Engine Seismic Detector Tractor Beam Mining Laser [Rating: 9] Favorites ----------- Power Ion Engine Engine Ion Engine Propulsion Compact Wheel Wheel Compact Wheel Flight Unit Flight Unit Utility Small Storage Unit Device Seismic Detector Storage Small Storage Unit Weapon Assault Rifle Ballistic Gun Assault Rifle Ballistic Cannon Light Cannon Special Weapon Mining Laser Build | -11 -10 ------- Run | Yrd Mat Slots Evolved . | . . Power . | . . Propulsion . | . . Utility . | . . Weapon . | . . Parts Attached 21 | 10 11 Power 4 | 3 1 Engine 4 | 3 1 Core . | . . Reactor . | . . Propulsion 4 | 2 2 Treads . | . . Leg . | . . Wheel 2 | 2 . Hover . | . . Flight 2 | . 2 Utility 5 | 2 3 Device 3 | 1 2 Storage 2 | 1 1 Processor . | . . Hackware . | . . Protection . | . . Artifact . | . . Weapon 8 | 3 5 Energy Gun . | . . Energy Cannon . | . . Ballistic Gun 5 | 3 2 Ballistic Cannon 2 | . 2 Launcher . | . . Special Weapon 1 | . 1 Impact Weapon . | . . Slashing Weapon . | . . Piercing Weapon . | . . Special Melee Weapon . | . . Unidentified Prototypes . | . . Parts Lost 9 | . 9 Power 2 | . 2 Propulsion 3 | . 3 Utility 1 | . 1 Weapon 3 | . 3 Highest Loss Streak 8 | . 8 To Critical Strikes . | . . Average Slot Usage (%) 71 | . 71 Engine 10 | . 10 Wheel 17 | . 17 Flight 2 | . 2 Device 8 | . 8 Storage 9 | . 9 Ballistic Gun 17 | . 17 Ballistic Cannon 3 | . 3 Special Weapon 2 | . 2 Peak Build Rating 9 | 7 9 Average Rating 5 | 5 5 On Entrance 3 | . 7 Naked Turns 4 | . 4 Heaviest Build 17 | 15 17 Greatest Support 32 | 32 32 Greatest Overweight (x) 1 | . 1 Average Overweight (x) . | . . Largest Inventory Capacity 8 | 8 8 Average Capacity 7 | 7 7 Most Carried 8 | 8 8 Average Carried 2 | 1 4 Final Capacity 8 | 8 8 Final Carried 4 | 4 3 Class Distribution -------------------- 100% | Mutant Dominant Class ---------------- Mutant | -10/Materials Resources | -11 -10 ----------- Run | Yrd Mat Matter Collected 667 | 476 191 Remotely . | . . Salvage Created 562 | 353 209 Parts 35 | 24 11 Haulers Intercepted 1 | . 1 Recyclers Shooed 2 | 1 1 Parts Field Recycled . | . . Retrieved Matter . | . . Parts Self-Destructed . | . . Prevented . | . . Kills | -11 -10 ------- Run | Yrd Mat Combat Hostiles Destroyed 4 | . 4 Guns 3 | . 3 Cannons 1 | . 1 Classes Destroyed 7 | 3 4 Worker 4 | 4 . Tunneler 9 | 9 . Hauler 1 | . 1 Recycler 2 | 1 1 Operator 1 | . 1 Swarmer 3 | . 3 Grunt 1 | . 1 Best Kill Streak 5 | 5 3 Combat Bots Only 3 | . 3 Max Kills in Single Turn 1 | 1 1 Gunslinging . | . . Exploded . | . . Melee . | . . Uniques/NPCs Destroyed . | . . Combat | -11 -10 -------- Run | Yrd Mat Hostile Shots Fired 99 | . 99 Missed 26 | . 26 Damage Taken 895 | . 895 Core 261 | . 261 Absorbed by Shields . | . . Core Remaining (%) 100 | 100 . Volleys Fired 59 | 31 28 Largest 2 | 2 2 Hottest 100 | 40 100 Shots Fired 112 | 62 50 Gun 94 | 62 32 Cannon 15 | . 15 Launcher . | . . Special 3 | . 3 Kinetic 109 | 62 47 Thermal 3 | . 3 Explosive . | . . Electromagnetic . | . . Robot Hit Streak 7 | 7 3 Robot Miss Streak 6 | 2 6 Penetration Max . | . . Secondary Targets 1 | . 1 Max Gunslinging Chain 1 | . 1 Shots Hit Robots 56 | 36 20 Core Hits 25 | 15 10 Critical Kills . | . . Critical Parts Destroyed . | . . Critical Strikes . | . . Melee Attacks . | . . Impact . | . . Slashing . | . . Piercing . | . . Sneak Attacks . | . . Combat Hostiles . | . . Follow-up Attacks . | . . Damage Inflicted 754 | 460 294 Guns 657 | 460 197 Cannons 73 | . 73 Explosions . | . . Melee . | . . Ramming . | . . Kinetic 730 | 460 270 Thermal 24 | . 24 Explosive . | . . Electromagnetic . | . . Impact . | . . Slashing . | . . Piercing . | . . Highest Corruption . | . . Average Corruption . | . . Corruption Purged . | . . Corruption Blocked . | . . Overload Shots . | . . Overflow Damage . | . . Projectiles . | . . Explosions . | . . Melee . | . . Knockbacks 1 | . 1 Impact . | . . Kinetic 1 | . 1 Secondary . | . . Self-Inflicted Damage . | . . Shots . | . . Rammed . | . . Targets Rammed . | . . Kicked . | . . Crushed . | . . Highest Temperature 234 | 6 234 Average Temperature 90 | 6 98 Received Heat Transfer 435 | . 435 Effects 2 | . 2 Interference 2 | . 2 Siege Activations . | . . Robots Corrupted . | . . Combat Hostiles . | . . Parts Fried . | . . Impact Corruptions . | . . Robots Melted . | . . Combat Hostiles . | . . Parts Melted . | . . Heat Transferred 50 | . 50 Parts Sabotaged . | . . Parts Stolen . | . . Parts Stripped . | . . Power Chain Reactions . | . . Alert | -11 -10 ------- Run | Yrd Mat Peak Influence 144 | 60 144 Initial 6 | . 6 Average 39 | 17 80 Maximum Alert Level . | . . Low Security (%) 100 | 100 100 Level 1 . | . . Level 2 . | . . Level 3 . | . . Level 4 . | . . Level 5 . | . . High Security . | . . Max Security . | . . Squads Dispatched . | . . Investigation . | . . Extermination . | . . Reinforcement . | . . Assault . | . . Garrison . | . . Intercept . | . . Searches Triggered . | . . Construction Impeded . | . . Haulers Reinforced . | . . Active Scanning Responses . | . . Cargo Convoy Interrupts . | . . Stealth | -11 -10 --------- Run | Yrd Mat Distress Signals 1 | . 1 Communications Jammed . | . . Distress Signals . | . . Times Spotted 15 | . 15 Peak Tracking Total 6 | . 6 Tactical Retreats 1 | . 1 Traps | -11 -10 ------- Run | Yrd Mat Traps Triggered . | . . Indirectly . | . . Trap Hack Attempts . | . . Triggered . | . . Disarmed . | . . Reprogrammed . | . . Reused . | . . Traps Extracted . | . . Installed . | . . Triggered . | . . Machines | -11 -10 ---------- Run | Yrd Mat Machines Disabled 1 | . 1 Max in Single Turn 1 | . 1 Machines Repaired . | . . Machines Dismantled . | . . Machines Sabotaged . | . . Overloaded Fab Kills . | . . Hacking | -11 -10 --------- Run | Yrd Mat Machines Accessed 1 | . 1 Terminals 1 | . 1 Fabricators . | . . Repair Stations . | . . Recycling Units . | . . Scanalyzers . | . . Garrison Access . | . . Total Hacks 3 | . 3 Successful 1 | . 1 Failed 2 | . 2 Catastrophic 1 | . 1 Database Lockouts . | . . Manual 7 | . 7 Terminals 3 | . 3 Fabricators . | . . Repair Stations . | . . Recycling Units . | . . Scanalyzers . | . . Garrison Access . | . . Terminal Hacks 1 | . 1 Zone Layout 1 | . 1 Fabricator Hacks . | . . Repair Station Hacks . | . . Recycling Unit Hacks . | . . Scanalyzer . | . . Garrison Access Hacks . | . . Unauthorized Hacks . | . . Terminals . | . . Fabricators . | . . Repair Stations . | . . Recycling Units . | . . Scanalyzers . | . . Garrison Access . | . . Data Cores Recovered . | . . Used . | . . Hacking Detections 1 | . 1 Full Trace Events 1 | . 1 Feedback Events . | . . Feedback Blocked . | . . Robot Schematics Acquired . | . . Robots Built . | . . Authchips . | . . Time . | . . Total Robot Build Rating . | . . Part Schematics Acquired . | . . Parts Built . | . . Authchips . | . . Time . | . . Total Part Build Rating . | . . Parts Repaired . | . . Time . | . . Parts Recycled . | . . Recycled Matter . | . . Retrieved Matter . | . . Retrieved Components . | . . Parts Scanalyzed . | . . Part Schematics Acquired . | . . Parts Damaged . | . . Bothacking | -11 -10 ------------ Run | Yrd Mat Used RIF Installer . | . . Robots Hacked . | . . Non-combat . | . . Combat . | . . Robot Hacks Applied . | . . Relay Couplers Released . | . . Fabnet Peak Effective % . | . . Robots Rewired . | . . Allies Hacked . | . . Hacks Repelled . | . . Allies | -11 -10 -------- Run | Yrd Mat Total Allies . | . . Largest Group . | . . Highest-Rated Group . | . . Highest-Rated Ally . | . . Total Orders . | . . Ally Attacks . | . . Total Damage . | . . Kills . | . . Allies Corrupted . | . . Allies Melted . | . . Intel | -11 -10 ------- Run | Yrd Mat Robot Analysis Total . | . . Derelict Logs Recovered . | . . Drone Launches . | . . Drone Recoveries . | . . Exploration | -11 -10 ------------- Run | Yrd Mat Turns Passed 1026 | 662 364 Spaces Moved 828 | 539 289 Core 128 | 18 110 Treads . | . . Legs . | . . Wheels 659 | 521 138 Hover . | . . Flight 41 | . 41 Fastest Speed 37 | 50 37 Average Speed 92 | 98 80 Slowest Speed 120 | 100 120 Overloaded Moves . | . . Propulsion Burnouts . | . . Robots Hopped . | . . Cave-ins Triggered . | . . Exploration Rate (%) 16 | 16 17 Regions Visited 1 Branch Regions . Pre-discovered Areas . | . . Known Exits Taken . | . . Unknown Exits Taken 1 | 1 . Scrap Searched . | . . Spaces Dug 1 | . 1 Terrain Destroyed 2 | . 2 Melee . | . . Projectile 2 | . 2 AOE . | . . Terrain Rammed . | . . Walls Destroyed . | . . Machines Disabled . | . . Actions | -11 -10 --------- Run | Yrd Mat Total 975 | 611 364 Wait 32 | 8 24 Move 827 | 538 289 Hop . | . . Pick Up 23 | 17 6 Fast Attach . | . . Attach 15 | 8 7 Detach 4 | 1 3 Swap 6 | 2 4 Drop 9 | 6 3 Fire 59 | 31 28 Melee . | . . Ram . | . . Kick . | . . Crush . | . . Escape Stasis . | . . Rewire . | . . Trap . | . . Miscellaneous . | . . Route ------- -11/Scrapyard -10/Materials History --------- Turn | Location | Event 60 | -11/Scrapyard | Discovered new exit (range 16) 663 | -11/Scrapyard | Entered Materials 664 | -10/Materials | Build established: Mutant 892 | -10/Materials | Core integrity fell below 50% 979 | -10/Materials | Lost 8 parts (2p3n1u2w) 1024 | -10/Materials | Core integrity fell below 20% 1027 | -10/Materials | Destroyed by G-47 Trooper with Particle Gun Last Messages --------------- 00874_ Overheating: System interference. 00874_ Lgt. Cannon temporarily disabled. 00874_ Lgt. Cannon destroyed. 00884_ Com. Wheel destroyed. 00889_ Ion Engine destroyed. 00890_ U-05 Engineer builds a Door. 00890_ Lgt. Cannon destroyed. 00906_ Dropped Com. Wheel. 00912_ Flight Unit destroyed. 00935_ Acquired 36 matter. 00936_ Acquired 67 matter. 00948_ Lgt. Ion Engine destroyed. 00953_ Dropped Assault Rifle. 00953_ Acquired Assault Rifle. 00994_ R-06 Scavenger destroyed. 00998_ Acquired 62 matter. 00999_ Dropped Tractor Beam. 01000_ Acquired Transport Network Coupler. 01021_ Mining Laser destroyed. 01023_ W-16 Scout destroyed. Map ----- +----------------------------------------------------+ | ?????????????????????????????????????????????????? | | ?????????????????????????????????????????????????? | | ?????????????????????????????????????????????????? | | ?????????????????????????????????????????????????? | | ?????????????????????????????????????????????????? | | ?????????????????????????????????????????????????? | | ?????????????????????????????????????????????????? | | ?????????????????????????????????????????????????? | | ?????????????????????????????????????????????????? | | ?????????????????????????????????????????????????? | | ?????????????????????????????????????????????????? | | ??????????????????######## ??????????????????????? | | ????????????????#?# #???????????????????????? | | ??????????????????# #???"???????????????????? | | ??????????????????# #???????????????????????? | | ??????????????????# #???????????????????????? | | ??????????????????# #???????????????????????? | | ?????????#?????#??# #???????????????????????? | | ??????????????????# #??? ????#?????????????? | | ??????????????????#+####/###?????????????????????? | | ??????????????????# g g #?????????????????????? | | ??????????? ??????# gg #?????????????????????? | | ??????????????????# #?????????????????????? | | ??????????????? ??# ] g ##?#??????????????????? | | ??????????? ?????##] ] #??? ????????????????? | | ###############+## # @[##??# #???????????????? | | ! # =%##### #####???????????? | | # ! % ????????? | | # ###### % ????????? | | ???#######+####### # #????# ??????????? | | ???????# #??####### #???###+#######?????????? | | ???????# #?????#??# #???# ???????????? | | ???????# """ #??#?????# #???# """???????????? | | ???????# """ #????????# #???# """???????????? | | ???????# """ #???????## #?#?#" """ ??????????? | | ??????## = #????????# ##??#T ???????????? | | ???????#############?#?# #???#" ???????????? | | ?????????# !##### #?#?# ???????????? | | ?????????# # #??##########???????????? | | ?????????# """ """ # #??#??# """""???????????? | | ????????## """ """ + T #?????# """""???????????? | | ????????#" """ """ #[ #?????# """""???????????? | | ????????#" # #?????# ???????????? | | ????????## ## ##?????# ???????????? | | ?????????# ## #??????# ???????????? | | ?????????############ #??????# ???????????? | | ????????????????????# #??????# ???????????? | | ????????????????????# #??????#######???????????? | | ????????????????????#####???????#????????????????? | | ????????????????#??#?????????????????????????????? | +----------------------------------------------------+ Best States ------------- Heat Dissipation 25 Energy Generation 10 Energy Capacity 250 Matter Stores 300 Matter Capacity 300 Sight Range 16 Terrain Scan Range 16 Terrain Scan Density 10 Evasion (%) 50 Item Schematics ----------------- None Robot Schematics ------------------ None Fabricated ------------ Nothing Alien Tech Used ----------------- None Achievements -------------- None Challenges ------------ None Game ------ Seed LinkedThrowingMultirail Manual? 0 Play Time 00:23:53 Cumulative 11.5 hours Start 2024.10.08 @ 22:06:23 End 2024.10.08 @ 22:34:12 Sessions 1 Manual Loads 0 Difficulty Rogue Special Mode None Game No. 34 Rogue 34 Adventurer 0 Explorer 0 Win Type - Total 0 Types 0/0/0/0/0/0/0/0/0 Lore% 11 Gallery% 22 Achievement% 23 Wizard Run 0 Options --------- Layout 1 ASCII 0 Keyboard 1 Movement Numpad Keybinds 0 Fullscreen 1 Font 32/SmallcapsGlow Map View 50x35 Zoom Use 0% Tactical HUD 1 Map Filters NONE Filters NONE Steam 1 RUN: e6b8d37a-2877-4dc2-a115-1b8960be9bd6